bitfinex-derivatives/quotes_BTCF0:USTF0_20251220
["timestamp","ask_amount","ask_price","bid_price","bid_amount"]
[1766192149015,0.22738123,88050.0,88032.0,0.01153602]
[1766192151119,0.02795959,88049.0,88032.0,0.01153602]
[1766192151417,0.22738123,88050.0,88032.0,0.01153602]
[1766192151620,0.02795968,88049.0,88032.0,0.01153602]
[1766192151820,0.22738123,88050.0,88032.0,0.01153602]
[1766192152117,0.02796699,88049.0,88032.0,0.01153602]
[1766192152313,0.22738123,88050.0,88032.0,0.01153602]
[1766192152615,0.00568,88048.0,88032.0,0.01153602]
[1766192153607,0.00568,88049.0,88032.0,0.01153602]
[1766192154010,0.00568,88049.0,88035.0,0.0113653]
[1766192154219,0.02798122,88048.0,88035.0,0.0113653]
[1766192154511,0.00568,88049.0,88035.0,0.0113653]
[1766192154818,0.02798122,88048.0,88035.0,0.0113653]
[1766192155011,0.00568,88049.0,88035.0,0.0113653]
[1766192155211,0.02798121,88048.0,88035.0,0.0113653]
[1766192155409,0.22738123,88050.0,88032.0,0.00017042]
[1766192155410,0.00011364,88050.0,88032.0,0.00017042]
[1766192155617,0.00011364,88050.0,88038.0,0.22726759]
[1766192155813,0.0113606,88072.0,88049.0,0.0113635]
[1766192156013,0.0113584,88089.0,88050.0,0.22726759]
[1766192156014,0.22726759,88070.0,88050.0,0.22726759]
[1766192156214,0.02798675,88069.0,88051.0,0.0113632]
[1766192156414,0.02798675,88068.0,88051.0,0.0113632]
[1766192156611,0.03366675,88067.0,88051.0,0.0113632]
[1766192156914,0.00568,88066.0,88051.0,0.0113632]
[1766192157119,0.00568,88066.0,88050.0,0.22743791]
[1766192157520,0.22726759,88070.0,88050.0,0.22743791]
[1766192157704,0.03363049,88069.0,88050.0,0.22743791]
[1766192158009,0.00568,88068.0,88050.0,0.22743791]
[1766192158607,0.0170411,88068.0,88050.0,0.22743791]
[1766192158910,0.0170411,88068.0,88050.0,0.00017032]
[1766192159104,0.0113615,88065.0,88050.0,0.00017032]
[1766192160709,0.22726759,88060.0,88051.0,0.00568]
[1766192160916,0.22726759,88060.0,88047.0,0.00568]
[1766192161220,0.011363,88053.0,88032.0,0.0113656]
[1766192161518,0.0113606,88072.0,88023.0,1.44932]
[1766192161519,0.22726759,88042.0,88023.0,1.44932]
[1766192161711,0.00016999,88041.0,88025.0,0.0113665]
[1766192161905,0.00016999,88041.0,88028.0,0.0113661]
[1766192162505,9e-08,88041.0,88024.0,0.00585032]
[1766192163519,9e-08,88041.0,88031.0,0.0113658]
[1766192163719,9e-08,88041.0,88032.0,0.00568]
[1766192169422,9e-08,88041.0,88033.0,0.0113656]
[1766192171321,9e-08,88041.0,88034.0,0.00568]
[1766192187125,0.00076,88071.0,88049.0,0.0113634]
[1766192187332,0.0113564,88105.0,88050.0,0.23084682]
[1766192187333,0.0113597,88079.0,88050.0,0.23084682]
[1766192187520,0.03164738,88078.0,88051.0,0.0113632]
[1766192187723,0.011359,88085.0,88055.0,0.0113627]
[1766192187925,0.011359,88085.0,88057.0,0.0113624]
[1766192188124,0.011359,88085.0,88062.0,0.00017032]
[1766192188336,0.00568,88084.0,88062.0,0.00017032]
[1766192188540,0.00568,88083.0,88062.0,0.00017032]
[1766192192438,0.00568,88082.0,88062.0,0.00017032]
[1766192197022,0.0113588,88086.0,88062.0,0.00017032]
[1766192197836,0.00568,88085.0,88062.0,0.00017032]
[1766192199228,0.0113588,88086.0,88062.0,0.00017032]
[1766192199229,0.00568,88084.0,88062.0,0.00017032]
[1766192199431,0.00568,88083.0,88062.0,0.00017032]
[1766192202943,0.22713943,88080.0,88062.0,0.00017032]
[1766192203134,0.00568,88079.0,88062.0,0.00017032]
[1766192205146,0.00568,88078.0,88062.0,0.00017032]
[1766192205634,0.00568,88077.0,88062.0,0.00017032]
[1766192206036,0.00444,88077.0,88062.0,0.00017032]
[1766192206232,0.00384,88077.0,88062.0,0.00017032]
[1766192208747,0.00384,88077.0,88063.0,0.0113616]
[1766192208942,0.00384,88077.0,88062.0,0.00017032]
[1766192208943,0.00356,88085.0,88067.0,0.0113611]
[1766192209144,0.00356,88084.0,88067.0,0.00017032]
[1766192209344,0.00324,88084.0,88067.0,0.00017032]
[1766192211746,0.0145991,88084.0,88067.0,0.00017032]
[1766192211947,0.00324,88084.0,88067.0,0.00017032]
[1766192213344,0.0145991,88084.0,88067.0,3.2e-07]
[1766192214249,0.0147691,88084.0,88067.0,3.2e-07]
[1766192216445,0.00341,88084.0,88067.0,3.2e-07]
[1766192219241,0.00017,88084.0,88067.0,3.2e-07]
[1766192219539,0.00585,88084.0,88067.0,3.2e-07]
[1766192225554,0.00017,88084.0,88067.0,3.2e-07]
[1766192225854,0.00585,88084.0,88067.0,3.2e-07]
[1766192226247,0.00017,88084.0,88067.0,3.2e-07]
[1766192226454,0.00585,88084.0,88067.0,3.2e-07]
[1766192226954,0.00017,88084.0,88067.0,3.2e-07]
[1766192227161,0.00585,88084.0,88067.0,3.2e-07]
[1766192227851,0.00017,88084.0,88067.0,3.2e-07]
[1766192228156,0.00585,88084.0,88067.0,3.2e-07]
[1766192230256,0.00017,88084.0,88067.0,3.2e-07]
[1766192230457,0.00585,88084.0,88067.0,3.2e-07]
[1766192230652,0.00017,88084.0,88067.0,3.2e-07]
[1766192230854,0.00585,88084.0,88067.0,3.2e-07]
[1766192231759,0.00017,88084.0,88067.0,3.2e-07]
[1766192231951,0.00585,88084.0,88067.0,3.2e-07]
[1766192232151,0.00017,88084.0,88067.0,3.2e-07]
[1766192232353,0.00585,88084.0,88067.0,3.2e-07]
[1766192237169,0.00017,88084.0,88067.0,3.2e-07]
[1766192237460,0.22711101,88080.0,88067.0,3.2e-07]
[1766192255463,0.00017,88084.0,88067.0,0.01136142]
[1766192255766,0.00017,88084.0,88067.0,3.2e-07]
[1766192255965,0.00568,88083.0,88067.0,3.2e-07]
[1766192259266,0.00568,88083.0,88070.0,0.22711101]
[1766192259469,0.00568,88083.0,88067.0,3.2e-07]
[1766192259658,0.00568,88083.0,88067.0,0.00568032]
[1766192262071,0.22711101,88080.0,88066.0,0.00568]
[1766192262268,0.0113597,88079.0,88066.0,0.00568]
[1766192262467,0.22711101,88080.0,88063.0,0.0028]
[1766192263070,0.22711101,88080.0,88063.0,0.00297032]
[1766192263370,0.22713017,88080.0,88063.0,0.00297032]
[1766192263669,0.00568,88083.0,88063.0,0.00297032]
[1766192263870,0.22713017,88080.0,88063.0,0.00297032]
[1766192268675,0.00568,88079.0,88063.0,0.00297032]
[1766192281788,0.00568,88079.0,88056.0,0.0113625]
[1766192281986,0.00568,88079.0,88057.0,0.00568]
[1766192282880,0.00568,88079.0,88059.0,0.00017032]
[1766192294103,0.0113598,88078.0,88059.0,0.00017032]
[1766192298918,0.00568,88079.0,88059.0,0.00017032]
[1766192299117,0.0170397,88079.0,88059.0,0.00017032]
[1766192300416,0.0113605,88073.0,88059.0,0.00017032]
[1766192301918,0.01136,88077.0,88059.0,0.00017032]
[1766192305621,0.0113603,88074.0,88059.0,0.00017032]
[1766192308323,0.0113605,88073.0,88059.0,3.2e-07]
[1766192308519,0.00568,88079.0,88042.0,0.08172167]
[1766192308520,0.2271426,88070.0,88042.0,0.08172167]
[1766192308719,0.0113628,88055.0,88036.0,1.4488]
[1766192308924,0.0113628,88055.0,88034.0,0.0113653]
[1766192309228,0.0113622,88060.0,88036.0,0.00568]
[1766192309425,0.00017032,88057.0,88039.0,0.00017032]
[1766192312414,0.0113626,88056.0,88039.0,0.00017032]
[1766192314014,0.00017032,88057.0,88039.0,0.00017032]
[1766192314330,0.01153292,88057.0,88039.0,0.00017032]
[1766192317333,0.00017032,88057.0,88039.0,0.00017032]
[1766192318536,0.0113627,88056.0,88039.0,0.00017032]
[1766192318735,0.011363,88053.0,88039.0,0.00017032]
[1766192319630,0.0113642,88045.0,88028.0,0.00568]
[1766192319825,0.0113636,88049.0,88028.0,0.00568]
[1766192320636,0.00017032,88047.0,88030.0,0.00017032]
[1766192322130,0.011364,88046.0,88030.0,3.2e-07]
[1766192323829,0.00017032,88047.0,88030.0,0.22714292]
[1766192324229,0.00017032,88047.0,88030.0,3.2e-07]
[1766192330542,0.00017032,88047.0,88031.0,0.0113657]
[1766192333145,0.00017032,88047.0,88030.0,0.22724452]
[1766192333339,3.2e-07,88047.0,88031.0,0.0113658]
[1766192334047,3.2e-07,88047.0,88030.0,3.2e-07]
[1766192335845,3.2e-07,88047.0,88030.0,0.01136622]
[1766192336747,3.2e-07,88047.0,88030.0,0.23861042]
[1766192338951,3.2e-07,88047.0,88030.0,0.01136622]
[1766192342345,3.2e-07,88047.0,88030.0,3.2e-07]
[1766192342853,3.2e-07,88047.0,88031.0,0.00464]
[1766192343249,3.2e-07,88047.0,88031.0,0.0160058]
[1766192343952,3.2e-07,88047.0,88032.0,0.0113656]
[1766192344153,3.2e-07,88047.0,88031.0,0.00464]
[1766192345552,3.2e-07,88047.0,88031.0,0.0160058]
[1766192345957,3.2e-07,88047.0,88034.0,0.0113654]
[1766192346645,3.2e-07,88047.0,88031.0,0.00464]
[1766192350858,3.2e-07,88047.0,88032.0,0.00568]
[1766192360063,0.2272442,88070.0,88032.0,0.00568]
[1766192360263,1.48274275,88069.0,88032.0,0.00568]
[1766192360456,0.02782275,88068.0,88032.0,0.00568]
[1766192360654,0.02782275,88067.0,88032.0,0.00568]
[1766192360863,0.02782275,88066.0,88032.0,0.00568]
[1766192361065,0.00017032,88058.0,88032.0,0.00568]
[1766192361561,0.00017032,88058.0,88037.0,0.011365]
[1766192362158,0.01153272,88058.0,88033.0,0.0113655]
[1766192367354,0.00017032,88058.0,88036.0,0.0113651]
[1766192369566,0.00017032,88058.0,88037.0,0.00568]
[1766192370472,0.0113625,88057.0,88037.0,0.00568]
[1766192373263,0.00017032,88058.0,88038.0,0.0113649]
[1766192373467,0.00568,88057.0,88038.0,0.0113649]
[1766192375073,0.00568,88056.0,88037.0,0.00568]
[1766192376275,0.22723184,88050.0,88037.0,0.00568]
[1766192376676,0.23291184,88050.0,88038.0,0.00568]
[1766192380580,0.23291184,88050.0,88035.0,0.00568]
[1766192382881,0.00568,88050.0,88035.0,0.00568]
[1766192383785,0.23291184,88050.0,88035.0,0.00568]
[1766192385001,0.24427534,88050.0,88031.0,0.00017032]
[1766192385299,0.24427534,88050.0,88033.0,0.00568]
[1766192388201,0.23291184,88050.0,88033.0,0.00568]
[1766192389194,0.23291184,88050.0,88034.0,0.0113654]
[1766192389991,0.22723184,88050.0,88034.0,0.0113654]
[1766192390190,0.00568,88049.0,88034.0,0.0113654]
[1766192390595,0.00568,88049.0,88033.0,0.00568]
[1766192411706,0.00017032,88058.0,88033.0,0.0170455]
[1766192411909,0.03220087,88057.0,88033.0,0.0170455]
[1766192412206,0.02792111,88056.0,88033.0,0.0170455]
[1766192412407,0.00428,88057.0,88033.0,0.0170455]
[1766192412607,0.02791968,88056.0,88033.0,0.0170455]
[1766192412810,0.00428,88057.0,88033.0,0.0170455]
[1766192423522,0.00428,88057.0,88037.0,0.011365]
[1766192423723,0.00428,88057.0,88038.0,0.00568]
[1766192424619,0.00017032,88058.0,88042.0,0.0113644]
[1766192424822,3.2e-07,88058.0,88047.0,0.0113637]
[1766192425133,3.2e-07,88058.0,88048.0,0.00568]
[1766192427822,3.2e-07,88058.0,88043.0,0.0113642]
[1766192428020,3.2e-07,88058.0,88044.0,0.00568]
[1766192435432,3.2e-07,88058.0,88045.0,0.011364]
[1766192437533,3.2e-07,88058.0,88048.0,0.0113636]
[1766192437722,3.2e-07,88058.0,88051.0,0.0113632]
[1766192437924,3.2e-07,88058.0,88052.0,0.00568]
[1766192439437,0.0002,88073.0,88053.0,0.011363]
[1766192440535,0.00017032,88072.0,88054.0,0.00017032]
[1766192442341,3.2e-07,88072.0,88055.0,0.0113627]
[1766192442635,0.00156,88078.0,88055.0,0.0113627]
[1766192442824,0.0113595,88080.0,88055.0,0.0113627]
[1766192443026,0.00404,88079.0,88055.0,0.0113627]
[1766192443424,0.00017032,88076.0,88055.0,0.0113627]
[1766192446549,3.2e-07,88076.0,88058.0,0.0113623]
[1766192446740,3.2e-07,88076.0,88059.0,0.00568]
[1766192449457,3.2e-07,88076.0,88060.0,0.011362]
[1766192451057,3.2e-07,88076.0,88059.0,0.00568]
[1766192454965,3.2e-07,88076.0,88060.0,0.011362]
[1766192457662,3.2e-07,88076.0,88063.0,0.0113617]
[1766192459564,3.2e-07,88076.0,88066.0,0.0113613]
[1766192459754,3.2e-07,88076.0,88067.0,0.00568]
[1766192460752,3.2e-07,88076.0,88068.0,0.0113611]
[1766192460957,0.00238242,88099.0,88076.0,0.0113599]
[1766192461159,0.02792092,88098.0,88078.0,0.0113597]
[1766192461464,0.00568,88103.0,88081.0,0.0113593]
[1766192461653,0.02791202,88102.0,88081.0,0.0113593]
[1766192461856,0.00017032,88100.0,88083.0,0.00017032]
[1766192462164,0.00017032,88100.0,88084.0,0.00568]
[1766192463362,0.00017032,88100.0,88084.0,0.0170389]
[1766192463566,0.0008,88111.0,88087.0,0.0113586]
[1766192464454,0.0113557,88110.0,88087.0,0.0113586]
[1766192464664,0.0113557,88110.0,88084.0,0.00568]
[1766192466161,0.0113557,88110.0,88085.0,0.0113588]
[1766192466563,0.0113551,88115.0,88088.0,0.0113584]
[1766192467068,0.0113554,88112.0,88088.0,0.0113584]
[1766192470254,0.0113554,88113.0,88088.0,0.0113584]
[1766192474273,0.0113557,88110.0,88084.0,0.00568]
[1766192475260,0.0113557,88110.0,88084.0,0.017039]
[1766192478264,0.0038,88118.0,88084.0,0.00568]
[1766192478962,0.0038,88118.0,88085.0,0.0113589]
[1766192479364,0.0113562,88106.0,88085.0,0.0113589]
[1766192479775,0.0113557,88110.0,88085.0,0.0113589]
[1766192480877,0.0113557,88110.0,88089.0,0.0113583]
[1766192481064,0.0113557,88110.0,88085.0,0.0113588]
[1766192482464,0.0113557,88110.0,88088.0,0.0113584]
[1766192483477,0.0113561,88107.0,88084.0,0.0170389]
[1766192483658,0.0113561,88107.0,88090.0,0.22696561]
[1766192484574,0.22696561,88100.0,88087.0,0.00568]
[1766192484778,0.22696561,88100.0,88083.0,0.00017032]
[1766192485074,0.0113574,88097.0,88083.0,0.00017032]
[1766192485376,0.0113579,88093.0,88084.0,0.00568]
[1766192485573,0.22696561,88094.0,88072.0,0.0113605]
[1766192485777,0.22696561,88090.0,88073.0,0.00356]
[1766192485975,0.22696561,88090.0,88070.0,0.22696561]
[1766192486171,0.0113585,88088.0,88071.0,0.00568]
[1766192486566,0.22696561,88090.0,88071.0,0.00585032]
[1766192486964,0.22696561,88090.0,88071.0,0.01721092]
[1766192487377,0.22696561,88090.0,88071.0,0.01717092]
[1766192488174,0.0113575,88096.0,88071.0,0.01717092]
[1766192492773,0.22696561,88090.0,88071.0,0.01717092]
[1766192493371,0.22696561,88090.0,88071.0,0.00581032]
[1766192503877,0.0170377,88094.0,88071.0,0.00581032]
[1766192504079,0.22696561,88090.0,88071.0,0.00581032]
[1766192504578,0.0113584,88089.0,88071.0,0.00581032]
[1766192506178,0.22696561,88090.0,88071.0,0.00581032]
[1766192507768,0.22696561,88090.0,88072.0,0.0113605]
[1766192507970,0.00568,88094.0,88072.0,0.0113605]
[1766192513885,0.22696561,88090.0,88072.0,0.0113605]
[1766192515577,0.22696561,88090.0,88071.0,0.00581032]
[1766192516792,0.22696561,88090.0,88073.0,0.0113604]
[1766192517089,0.00568,88091.0,88073.0,0.0113604]
[1766192519781,0.00568,88091.0,88071.0,0.00581032]
[1766192521190,0.00568,88091.0,88072.0,0.0113605]
[1766192525397,0.00568,88091.0,88071.0,0.00581032]
[1766192526193,0.00568,88091.0,88076.0,0.01136]
[1766192528199,0.00568,88091.0,88071.0,0.00581032]
[1766192528200,0.00568,88091.0,88072.0,0.0113605]
[1766192532793,0.00568,88091.0,88071.0,0.00581032]
[1766192535402,0.00568,88091.0,88071.0,0.01717092]
[1766192535902,0.00568,88091.0,88071.0,0.00581032]
[1766192536497,0.00568,88091.0,88075.0,0.0113601]
[1766192539102,0.00568,88091.0,88071.0,0.01717092]
[1766192541707,0.00568,88091.0,88071.0,0.00581032]
[1766192542503,0.0113579,88093.0,88071.0,0.00581032]
[1766192543104,0.22704906,88090.0,88071.0,0.00581032]
[1766192543510,0.23840736,88090.0,88071.0,0.00581032]
[1766192545422,0.0113583,88090.0,88071.0,0.00581032]
[1766192550811,0.0113583,88090.0,88072.0,0.00568]
[1766192552712,0.00552,88089.0,88071.0,3.2e-07]
[1766192552920,0.00552,88089.0,88060.0,1.44856]
[1766192553118,0.00552,88089.0,88061.0,0.00568]
[1766192553818,0.0113595,88081.0,88066.0,0.00017032]
[1766192554319,0.0113598,88078.0,88066.0,0.00017032]
[1766192554513,0.0113607,88071.0,88057.0,0.00014311]
[1766192555316,0.0113607,88071.0,88058.0,0.00152]
[1766192555721,0.00017032,88073.0,88058.0,0.00152]
[1766192556715,0.0113606,88072.0,88058.0,0.00152]
[1766192556910,0.0113614,88066.0,88057.0,0.00102311]
[1766192557110,0.0113614,88066.0,88056.0,3e-08]
[1766192557322,0.00017032,88073.0,88056.0,3e-08]
[1766192557620,0.0113611,88068.0,88056.0,3e-08]
[1766192558321,0.0113613,88066.0,88056.0,3e-08]
[1766192559421,0.00010682,88067.0,88056.0,3e-08]
[1766192562520,0.00010682,88067.0,88055.0,3e-08]
[1766192562521,0.0113618,88063.0,88055.0,3e-08]
[1766192562820,0.00010682,88067.0,88035.0,0.0113653]
[1766192562821,0.0113622,88060.0,88035.0,0.0113653]
[1766192563122,0.0113622,88060.0,88036.0,0.00568]
[1766192563526,0.00017032,88057.0,88039.0,0.00017032]
[1766192565824,0.01153292,88057.0,88039.0,0.00017032]
[1766192566020,0.0113627,88056.0,88039.0,0.00017032]
[1766192570720,0.00017032,88057.0,88039.0,0.00017032]
[1766192571228,0.00010682,88067.0,88047.0,0.22707149]
[1766192571426,0.00010682,88067.0,88049.0,0.0113635]
[1766192572237,0.00027714,88067.0,88049.0,0.0113635]
[1766192572733,0.00027714,88067.0,88048.0,0.00568]
[1766192581351,0.01163834,88067.0,88048.0,0.00568]
[1766192583255,0.00027714,88067.0,88048.0,0.00568]
[1766192584855,0.0113614,88066.0,88048.0,0.00568]
[1766192586245,0.00027714,88067.0,88048.0,0.00568]
[1766192588359,0.00027714,88067.0,88049.0,0.0113635]
[1766192588660,0.00176,88076.0,88052.0,0.011363]
[1766192589460,0.0113602,88075.0,88052.0,0.011363]
[1766192589654,0.00017032,88072.0,88055.0,0.00017032]
[1766192589960,0.01153092,88072.0,88056.0,0.00568]
[1766192591260,0.00017032,88072.0,88056.0,0.00568]
[1766192593953,0.00568,88080.0,88057.0,0.0113624]
[1766192594158,0.02818466,88079.0,88057.0,0.0113624]
[1766192594454,0.00568,88080.0,88056.0,0.00568]
[1766192594455,0.0395505,88078.0,88056.0,0.00568]
[1766192594659,0.0113598,88078.0,88056.0,0.00568]
[1766192595053,0.0113602,88075.0,88056.0,0.00568]
[1766192596161,0.00017032,88076.0,88056.0,0.00568]
[1766192596365,0.01153042,88076.0,88056.0,0.00568]
[1766192600966,0.0113607,88071.0,88056.0,0.00568]
[1766192602471,0.0113602,88075.0,88056.0,0.00568]
[1766192603670,0.0113606,88072.0,88056.0,0.00568]
[1766192604474,0.01153042,88076.0,88056.0,0.00568]
[1766192604670,0.00017032,88076.0,88056.0,0.00568]
[1766192613881,0.00585032,88076.0,88056.0,0.00568]
[1766192614882,0.0113602,88075.0,88056.0,0.00568]
[1766192619386,0.00585032,88076.0,88056.0,0.00568]
[1766192620076,0.00585032,88076.0,88060.0,0.22713837]
[1766192620273,0.00585032,88076.0,88061.0,0.00568]
[1766192622385,0.02824014,88075.0,88061.0,0.00568]
[1766192622586,0.00585032,88076.0,88061.0,0.00568]
[1766192622886,0.02824038,88075.0,88061.0,0.00568]
[1766192623085,0.00585032,88076.0,88061.0,0.00568]
[1766192623386,0.02824038,88075.0,88061.0,0.00568]
[1766192623586,0.00585032,88076.0,88061.0,0.00568]
[1766192623779,0.02824157,88075.0,88061.0,0.00568]
[1766192623974,0.00585032,88076.0,88061.0,0.00568]
[1766192624176,0.02824158,88075.0,88061.0,0.00568]
[1766192624485,0.00585032,88076.0,88061.0,0.00568]
[1766192624689,0.02824285,88075.0,88061.0,0.00568]
[1766192624892,0.00585032,88076.0,88061.0,0.00568]
[1766192625186,0.02824286,88075.0,88061.0,0.00568]
[1766192625376,0.00585032,88076.0,88061.0,0.00568]
[1766192625578,0.02824378,88075.0,88061.0,0.00568]
[1766192625776,0.00585032,88076.0,88061.0,0.00568]
[1766192625977,0.02824708,88075.0,88061.0,0.00568]
[1766192626179,0.00585032,88076.0,88061.0,0.00568]
[1766192626479,0.02824981,88075.0,88061.0,0.00568]
[1766192626779,0.00585032,88076.0,88061.0,0.00568]
[1766192626981,0.02816051,88075.0,88061.0,0.00568]
[1766192627301,0.00585032,88076.0,88061.0,0.00568]
[1766192627489,0.02816066,88075.0,88061.0,0.00568]
[1766192627790,0.00585032,88076.0,88061.0,0.00568]
[1766192627982,0.0281607,88075.0,88061.0,0.00568]
[1766192628183,0.00585032,88076.0,88061.0,0.00568]
[1766192628382,0.02816069,88075.0,88061.0,0.00568]
[1766192628580,0.00585032,88076.0,88061.0,0.00568]
[1766192628782,0.02816111,88075.0,88061.0,0.00568]
[1766192629082,0.00585032,88076.0,88061.0,0.00568]
[1766192629288,0.02816109,88075.0,88061.0,0.00568]
[1766192629482,0.00585032,88076.0,88061.0,0.00568]
[1766192629681,0.02816065,88075.0,88061.0,0.00568]
[1766192629889,0.00585032,88076.0,88061.0,0.00568]
[1766192630088,0.02816135,88075.0,88061.0,0.00568]
[1766192630293,0.00585032,88076.0,88061.0,0.00568]
[1766192630492,0.02816142,88075.0,88061.0,0.00568]
[1766192630690,0.00585032,88076.0,88061.0,0.00568]
[1766192630890,0.02816144,88075.0,88061.0,0.00568]
[1766192631086,0.00585032,88076.0,88061.0,0.00568]
[1766192631392,0.02816141,88075.0,88061.0,0.00568]
[1766192631582,0.00585032,88076.0,88061.0,0.00568]
[1766192631783,0.02816164,88075.0,88061.0,0.00568]
[1766192631996,0.00585032,88076.0,88061.0,0.00568]
[1766192632195,0.02816629,88075.0,88061.0,0.00568]
[1766192632383,0.00585032,88076.0,88061.0,0.00568]
[1766192632582,0.0281669,88075.0,88061.0,0.00568]
[1766192632882,0.00585032,88076.0,88061.0,0.00568]
[1766192633082,0.02816705,88075.0,88061.0,0.00568]
[1766192633292,0.02816765,88074.0,88061.0,0.00568]
[1766192633593,0.02816765,88073.0,88061.0,0.00568]
[1766192633784,0.00585032,88076.0,88061.0,0.00568]
[1766192633985,0.02816768,88075.0,88061.0,0.00568]
[1766192634185,0.02816768,88074.0,88061.0,0.00568]
[1766192634395,0.02816768,88073.0,88061.0,0.00568]
[1766192634592,0.00585032,88076.0,88061.0,0.00568]
[1766192634883,0.02816767,88075.0,88061.0,0.00568]
[1766192635086,0.02816767,88074.0,88061.0,0.00568]
[1766192635292,0.02816767,88073.0,88061.0,0.00568]
[1766192635489,0.00585032,88076.0,88061.0,0.00568]
[1766192635694,0.0281677,88075.0,88061.0,0.00568]
[1766192635894,0.0281677,88074.0,88061.0,0.00568]
[1766192636093,0.0281677,88073.0,88061.0,0.00568]
[1766192636294,0.00585032,88076.0,88061.0,0.00568]
[1766192636496,0.02816774,88075.0,88061.0,0.00568]
[1766192636693,0.02816774,88074.0,88061.0,0.00568]
[1766192636886,0.00568,88083.0,88066.0,0.22713837]
[1766192637196,0.00568,88085.0,88070.0,0.22713837]
[1766192638298,0.00568,88085.0,88068.0,0.00568]
[1766192638488,0.00568,88085.0,88070.0,0.22713837]
[1766192639605,0.0113571,88099.0,88075.0,0.22713837]
[1766192639800,0.00428,88098.0,88080.0,0.22713837]
[1766192640504,0.00428,88098.0,88078.0,0.00017032]
[1766192641995,0.00428,88098.0,88080.0,0.22713837]
[1766192642203,0.00428,88098.0,88078.0,0.00017032]
[1766192642707,0.0113574,88097.0,88078.0,0.00017032]
[1766192646005,0.0113571,88099.0,88078.0,0.00017032]
[1766192651408,0.23849537,88100.0,88078.0,0.00017032]
[1766192651611,0.0113574,88097.0,88078.0,0.00017032]
[1766192654412,0.22713837,88100.0,88078.0,0.00017032]
[1766192654711,0.0113571,88099.0,88078.0,0.00017032]
[1766192655517,0.22713837,88100.0,88078.0,0.00017032]
[1766192657515,0.23849527,88100.0,88078.0,0.00017032]
[1766192657715,0.23849527,88100.0,88080.0,0.22713837]
[1766192657918,0.0113575,88096.0,88080.0,0.22713837]
[1766192658306,0.0113575,88096.0,88078.0,0.00017032]
[1766192661417,0.00235064,88101.0,88078.0,0.00017032]
[1766192661721,0.22713837,88100.0,88078.0,0.00017032]
[1766192662221,0.0113573,88097.0,88078.0,0.00017032]
[1766192662519,0.22713837,88100.0,88078.0,0.00017032]
[1766192663722,0.0113571,88099.0,88080.0,0.22713837]
[1766192664022,0.22713837,88100.0,88080.0,0.22713837]
[1766192665030,0.0725918,88117.0,88081.0,0.0113594]
[1766192665031,0.0113561,88107.0,88081.0,0.0113594]
[1766192665219,0.09278015,88126.0,88080.0,0.22713837]
[1766192665220,0.0113547,88118.0,88097.0,0.22713837]
[1766192665424,0.02741961,88117.0,88100.0,0.22713837]
[1766192665733,0.0113547,88118.0,88099.0,0.00017032]
[1766192667318,0.0113551,88115.0,88099.0,0.00017032]
[1766192668129,0.22693409,88130.0,88099.0,0.00017032]
[1766192668330,0.22693409,88110.0,88079.0,0.0113596]
[1766192668625,0.0113573,88098.0,88075.0,0.0113601]
[1766192669219,0.00017032,88095.0,88078.0,0.00017032]
[1766192669429,0.01152792,88095.0,88078.0,0.00017032]
[1766192669628,0.00017032,88095.0,88078.0,0.00017032]
[1766192670024,0.00017032,88095.0,88078.0,3.2e-07]
[1766192674037,0.00017032,88095.0,88079.0,0.0113596]
[1766192674642,0.00017032,88095.0,88078.0,3.2e-07]
[1766192677637,0.00017032,88095.0,88078.0,0.01136002]
[1766192678038,0.00017032,88095.0,88078.0,3.2e-07]
[1766192689435,0.0113577,88094.0,88078.0,3.2e-07]
[1766192689650,0.00017032,88095.0,88078.0,3.2e-07]
[1766192689651,0.0113588,88086.0,88078.0,3.2e-07]
[1766192691049,0.227046,88090.0,88061.0,0.08155465]
[1766192691250,0.0113602,88075.0,88050.0,0.08155465]
[1766192691552,0.0113602,88075.0,88048.0,0.0113636]
[1766192692046,0.0113602,88075.0,88053.0,0.00017032]
[1766192692354,0.00017032,88070.0,88053.0,0.00017032]
[1766192699144,0.01153112,88070.0,88053.0,0.00017032]
[1766192699450,0.22721632,88070.0,88053.0,0.00017032]
[1766192699649,0.22721632,88070.0,88035.0,0.0113653]
[1766192699950,0.0113617,88064.0,88039.0,0.0113647]
[1766192700749,0.0113617,88064.0,88043.0,0.00017032]
[1766192701257,0.0113611,88068.0,88043.0,0.00017032]
[1766192704154,0.22721632,88070.0,88045.0,0.011364]
[1766192704353,0.00017032,88070.0,88045.0,0.011364]
[1766192705157,0.011361,88069.0,88045.0,0.011364]
[1766192710756,0.0113614,88066.0,88043.0,0.00017032]
[1766192718470,0.0113614,88066.0,88044.0,0.0113641]
[1766192719364,0.22721632,88070.0,88044.0,0.0113641]
[1766192719365,0.011361,88069.0,88044.0,0.0113641]
[1766192719564,0.00017032,88070.0,88048.0,0.0113636]
[1766192721278,0.0113609,88069.0,88046.0,0.0113638]
[1766192722172,0.00017032,88070.0,88043.0,0.00017032]
[1766192722477,0.00017032,88070.0,88048.0,0.0113635]
[1766192725579,0.011361,88069.0,88044.0,0.011364]
[1766192727489,0.0113613,88066.0,88043.0,0.00017032]
[1766192728471,0.0113618,88063.0,88043.0,0.00017032]
[1766192729573,0.0113613,88067.0,88043.0,0.00017032]
[1766192729976,0.22737081,88070.0,88043.0,0.00017032]
[1766192730172,0.0113618,88063.0,88043.0,0.00017032]
[1766192736190,0.0113613,88067.0,88043.0,0.00017032]
[1766192736386,0.0113613,88067.0,88043.0,0.01153452]
[1766192736783,0.0113617,88064.0,88043.0,0.00017032]
[1766192737283,0.0113615,88065.0,88043.0,0.00017032]
[1766192749807,0.011361,88069.0,88043.0,0.01153452]
[1766192750805,0.0113613,88066.0,88043.0,0.01153452]
[1766192753620,0.0113613,88066.0,88050.0,0.22718933]
[1766192754021,0.23872055,88070.0,88050.0,0.22718933]
[1766192754720,0.0113612,88067.0,88050.0,0.22718933]
[1766192761210,0.22735965,88070.0,88050.0,0.22718933]
[1766192761714,0.06118861,88089.0,88060.0,0.22718933]
[1766192762025,0.22718933,88100.0,88070.0,0.22718933]
[1766192762026,0.02728652,88088.0,88070.0,0.22718933]
[1766192762217,0.02728652,88087.0,88070.0,0.22718933]
[1766192762523,0.02728652,88087.0,88052.0,0.08155465]
[1766192762524,0.0113591,88084.0,88060.0,0.22718933]
[1766192762820,0.0113594,88081.0,88060.0,0.22718933]
[1766192763033,0.0113598,88078.0,88062.0,0.00017032]
[1766192763517,0.00017032,88079.0,87875.0,0.61295995]
[1766192763518,0.22718933,88072.0,88048.0,0.08155465]
[1766192763719,0.22718933,88072.0,88042.0,0.08155465]
[1766192763928,0.0113618,88063.0,88042.0,0.08155465]
[1766192764115,0.0113618,88063.0,88041.0,0.0113645]
[1766192764116,0.0113618,88063.0,88041.0,0.09291915]
[1766192764316,0.22718933,88072.0,88043.0,0.0113642]